[Event "*** SCC Grand Prix: Titled Tuesday Blitz"]
[Site "Chess.com"]
[Date "2020.06.02"]
[Round "1"]
[White "TheFireChess"]
[Black "Zkid"]
[Result "1-0"]
[WhiteElo "2412"]
[BlackElo "2760"]
[TimeControl "180+1"]
[EndTime "10:04:32 PDT"]
[Termination "TheFireChess won by resignation"]

1. e4 {[%clk 0:03:00.9]} 1... e6 {[%clk 0:02:59.6]} 2. Nc3 {[%clk 0:03:00.4]}
2... d5 {[%clk 0:02:58.5]} 3. d3 {[%clk 0:03:01]} 3... Nf6 {[%clk 0:02:57.6]} 4.
e5 {[%clk 0:03:00.7]} 4... Nfd7 {[%clk 0:02:57.1]} 5. f4 {[%clk 0:03:01.6]} 5...
c5 {[%clk 0:02:51.2]} 6. Nf3 {[%clk 0:03:01.9]} 6... Nc6 {[%clk 0:02:50.4]} 7.
g3 {[%clk 0:03:02.4]} 7... f6 {[%clk 0:02:47.1]} 8. Bg2 {[%clk 0:03:02.6]} 8...
fxe5 {[%clk 0:02:42.9]} 9. fxe5 {[%clk 0:03:03.5]} 9... Ndxe5 {[%clk 0:02:39.5]}
10. Nxe5 {[%clk 0:03:04.4]} 10... Nxe5 {[%clk 0:02:40]} 11. O-O {[%clk
0:03:03.7]} 11... Be7 {[%clk 0:02:36.1]} 12. Qh5+ {[%clk 0:02:50.4]} 12... Ng6
{[%clk 0:02:35.1]} 13. Bd2 {[%clk 0:02:49.6]} 13... Bf6 {[%clk 0:02:29]} 14.
Nxd5 {[%clk 0:02:44.5]} 14... exd5 {[%clk 0:02:25.2]} 15. Rae1+ {[%clk
0:02:44.7]} 15... Kd7 {[%clk 0:02:09.9]} 16. Qxd5+ {[%clk 0:01:55.5]} 16... Kc7
{[%clk 0:02:08.5]} 17. Ba5+ {[%clk 0:01:55.4]} 17... b6 {[%clk 0:02:03.9]} 18.
Qc6+ {[%clk 0:01:54.9]} 18... Kb8 {[%clk 0:02:02]} 19. Qxa8+ {[%clk 0:01:55.3]}
19... Kc7 {[%clk 0:02:02.1]} 20. Qxa7+ {[%clk 0:01:55]} 20... Kd6 {[%clk
0:02:01.9]} 21. Bxb6 {[%clk 0:01:52.5]} 21... Bd4+ {[%clk 0:02:01.7]} 22. Kh1
{[%clk 0:01:52.2]} 22... Qd7 {[%clk 0:02:02.2]} 23. Qa3 {[%clk 0:01:35.1]} 23...
Qb5 {[%clk 0:01:56]} 24. c3 {[%clk 0:01:29.5]} 24... Bf6 {[%clk 0:01:55.8]} 25.
Qa7 {[%clk 0:01:22.4]} 25... Bd8 {[%clk 0:01:49.8]} 26. Qb8+ {[%clk 0:01:05.4]}
26... Kd7 {[%clk 0:01:49.6]} 27. Rf7+ {[%clk 0:00:58]} 27... Ne7 {[%clk
0:01:43.8]} 28. Rfxe7+ {[%clk 0:00:54.6]} 28... Bxe7 {[%clk 0:01:43.1]} 29. Qc7+
{[%clk 0:00:54.9]} 1-0

[Event "*** SCC Grand Prix: Titled Tuesday Blitz"]
[Site "Chess.com"]
[Date "2020.06.02"]
[Round "1"]
[White "googlegoom"]
[Black "jefferyx"]
[Result "0-1"]
[WhiteElo "2440"]
[BlackElo "2931"]
[TimeControl "180+1"]
[EndTime "10:04:37 PDT"]
[Termination "jefferyx won by resignation"]

1. Nf3 {[%clk 0:03:00.9]} 1... c5 {[%clk 0:02:51]} 2. b3 {[%clk 0:02:55.1]} 2...
Nf6 {[%clk 0:02:37.7]} 3. Bb2 {[%clk 0:02:53.5]} 3... g6 {[%clk 0:02:38.2]} 4.
e3 {[%clk 0:02:52]} 4... Bg7 {[%clk 0:02:38.1]} 5. Be2 {[%clk 0:02:50.3]} 5...
O-O {[%clk 0:02:29]} 6. O-O {[%clk 0:02:49.2]} 6... b6 {[%clk 0:02:29.5]} 7. d4
{[%clk 0:02:47.5]} 7... cxd4 {[%clk 0:02:30.4]} 8. Nxd4 {[%clk 0:02:47.2]} 8...
Bb7 {[%clk 0:02:12.4]} 9. Bf3 {[%clk 0:02:46.5]} 9... d5 {[%clk 0:02:11.8]} 10.
Nd2 {[%clk 0:02:39.4]} 10... Nbd7 {[%clk 0:02:05.1]} 11. c4 {[%clk 0:02:39.1]}
11... Ne5 {[%clk 0:02:05.2]} 12. Be2 {[%clk 0:02:38.2]} 12... Qd7 {[%clk
0:02:00.4]} 13. cxd5 {[%clk 0:02:17.2]} 13... Nxd5 {[%clk 0:01:59.2]} 14. N2f3
{[%clk 0:02:15.5]} 14... Rac8 {[%clk 0:01:55.4]} 15. Rc1 {[%clk 0:02:14.6]}
15... Rxc1 {[%clk 0:01:54.6]} 16. Qxc1 {[%clk 0:02:14.9]} 16... Rc8 {[%clk
0:01:55.2]} 17. Qa1 {[%clk 0:02:15.5]} 17... Nxf3+ {[%clk 0:01:50.3]} 18. Nxf3
{[%clk 0:02:00.3]} 18... Nc3 {[%clk 0:01:49.2]} 19. Bxc3 {[%clk 0:01:39.8]}
19... Rxc3 {[%clk 0:01:50.1]} 20. Rc1 {[%clk 0:01:21.5]} 20... Rxe3 {[%clk
0:01:41.1]} 21. Qxg7+ {[%clk 0:00:50.1]} 21... Kxg7 {[%clk 0:01:42]} 22. fxe3
{[%clk 0:00:50.1]} 22... Bxf3 {[%clk 0:01:38.4]} 23. gxf3 {[%clk 0:00:47.7]}
23... Qd2 {[%clk 0:01:38.3]} 0-1

[Event "*** SCC Grand Prix: Titled Tuesday Blitz"]
[Site "Chess.com"]
[Date "2020.06.02"]
[Round "1"]
[White "CalinGheorghiu"]
[Black "Rodalquilar"]
[Result "0-1"]
[WhiteElo "2293"]
[BlackElo "2629"]
[TimeControl "180+1"]
[EndTime "10:04:42 PDT"]
[Termination "Rodalquilar won on time"]

1. e4 {[%clk 0:02:51.7]} 1... d5 {[%clk 0:02:59.6]} 2. exd5 {[%clk 0:02:49.8]}
2... Qxd5 {[%clk 0:03:00.5]} 3. Nc3 {[%clk 0:02:49.1]} 3... Qa5 {[%clk
0:03:00.5]} 4. d4 {[%clk 0:02:48.8]} 4... Nf6 {[%clk 0:03:01]} 5. Nf3 {[%clk
0:02:47.9]} 5... Bf5 {[%clk 0:03:01.1]} 6. Bc4 {[%clk 0:02:26.8]} 6... e6 {[%clk
0:03:01.2]} 7. Bd2 {[%clk 0:02:17.9]} 7... Bb4 {[%clk 0:03:01]} 8. a3 {[%clk
0:02:12.9]} 8... Bxc3 {[%clk 0:03:00.9]} 9. Bxc3 {[%clk 0:02:13.8]} 9... Qb6
{[%clk 0:03:01.8]} 10. O-O {[%clk 0:01:42]} 10... Nc6 {[%clk 0:03:01.6]} 11. Ne5
{[%clk 0:01:36]} 11... Nxe5 {[%clk 0:03:01.5]} 12. dxe5 {[%clk 0:01:35.9]} 12...
Rd8 {[%clk 0:03:02.4]} 13. Qf3 {[%clk 0:00:51.8]} 13... Ne4 {[%clk 0:02:53.6]}
14. Bb4 {[%clk 0:00:25.8]} 14... Nd2 {[%clk 0:02:48]} 15. Bxd2 {[%clk
0:00:24.2]} 15... Rxd2 {[%clk 0:02:48.9]} 16. Rad1 {[%clk 0:00:17]} 16... Rxd1
{[%clk 0:02:31.5]} 17. Rxd1 {[%clk 0:00:17.9]} 17... Qxb2 {[%clk 0:02:15.4]} 18.
Bb3 {[%clk 0:00:15.5]} 18... O-O {[%clk 0:02:13.7]} 19. Qxb7 {[%clk 0:00:06.7]}
19... Bxc2 {[%clk 0:02:11]} 0-1

[Event "*** SCC Grand Prix: Titled Tuesday Blitz"]
[Site "Chess.com"]
[Date "2020.06.02"]
[Round "1"]
[White "keepitcool9499"]
[Black "gemarin"]
[Result "1-0"]
[WhiteElo "2472"]
[BlackElo "1991"]
[TimeControl "180+1"]
[EndTime "10:04:43 PDT"]
[Termination "keepitcool9499 won by resignation"]

1. d4 {[%clk 0:03:00.8]} 1... d5 {[%clk 0:02:58.8]} 2. c4 {[%clk 0:03:00.8]}
2... c6 {[%clk 0:02:58.7]} 3. cxd5 {[%clk 0:03:00.9]} 3... cxd5 {[%clk 0:02:58]}
4. Nc3 {[%clk 0:03:01.8]} 4... Nc6 {[%clk 0:02:57.6]} 5. Bf4 {[%clk 0:03:02.2]}
5... Nf6 {[%clk 0:02:57]} 6. Nf3 {[%clk 0:03:02.7]} 6... e6 {[%clk 0:02:56.3]}
7. e3 {[%clk 0:03:02.4]} 7... Bd6 {[%clk 0:02:56.1]} 8. Bg3 {[%clk 0:03:01.9]}
8... O-O {[%clk 0:02:55.3]} 9. Bd3 {[%clk 0:03:00.8]} 9... a6 {[%clk 0:02:55.6]}
10. Rc1 {[%clk 0:03:00.3]} 10... Qe7 {[%clk 0:02:53.4]} 11. Bb1 {[%clk 0:03:00]}
11... Bd7 {[%clk 0:02:50]} 12. a3 {[%clk 0:02:50.4]} 12... Ne8 {[%clk
0:02:46.3]} 13. Ne5 {[%clk 0:02:45.2]} 13... Nxe5 {[%clk 0:02:35.8]} 14. dxe5
{[%clk 0:02:13.8]} 14... Bb8 {[%clk 0:02:35]} 15. Qb3 {[%clk 0:01:53.6]} 15...
Bc6 {[%clk 0:02:33.1]} 16. O-O {[%clk 0:01:47.8]} 16... f5 {[%clk 0:02:29.1]}
17. Ne2 {[%clk 0:01:43.7]} 17... Qd7 {[%clk 0:02:21]} 18. Nd4 {[%clk 0:01:36]}
18... Ba4 {[%clk 0:02:18.7]} 19. Qb6 {[%clk 0:01:33.5]} 19... Kf7 {[%clk
0:02:10.8]} 20. Bxf5 {[%clk 0:01:29.9]} 20... Bc6 {[%clk 0:01:05.1]} 21. Bxe6+
{[%clk 0:01:25.5]} 21... Qxe6 {[%clk 0:00:53]} 22. Nxe6 {[%clk 0:01:26.4]} 22...
Kxe6 {[%clk 0:00:53.9]} 23. Rxc6+ {[%clk 0:01:23.2]} 1-0

[Event "*** SCC Grand Prix: Titled Tuesday Blitz"]
[Site "Chess.com"]
[Date "2020.06.02"]
[Round "1"]
[White "DanielTitichoca"]
[Black "GoltsevDmitry2000"]
[Result "0-1"]
[WhiteElo "2311"]
[BlackElo "2644"]
[TimeControl "180+1"]
[EndTime "10:04:46 PDT"]
[Termination "GoltsevDmitry2000 won by resignation"]

1. e4 {[%clk 0:02:48.2]} 1... c5 {[%clk 0:02:58.8]} 2. Nf3 {[%clk 0:02:43.7]}
2... e6 {[%clk 0:02:59.7]} 3. d4 {[%clk 0:02:42.5]} 3... cxd4 {[%clk 0:03:00.6]}
4. Nxd4 {[%clk 0:02:42.7]} 4... a6 {[%clk 0:03:00.6]} 5. c4 {[%clk 0:02:39.7]}
5... Qc7 {[%clk 0:02:59.6]} 6. Nc3 {[%clk 0:02:35.2]} 6... Nf6 {[%clk
0:02:59.5]} 7. Be2 {[%clk 0:02:31.7]} 7... Bb4 {[%clk 0:02:58.5]} 8. O-O {[%clk
0:02:31.7]} 8... Nc6 {[%clk 0:02:57.7]} 9. Be3 {[%clk 0:02:24]} 9... O-O {[%clk
0:02:49.2]} 10. Rc1 {[%clk 0:02:20.6]} 10... Bxc3 {[%clk 0:02:47.9]} 11. Rxc3
{[%clk 0:02:19]} 11... Nxe4 {[%clk 0:02:48.2]} 12. Rc1 {[%clk 0:02:19.6]} 12...
Nf6 {[%clk 0:02:45.5]} 13. c5 {[%clk 0:02:18.2]} 13... Nd5 {[%clk 0:02:32.8]}
14. Nxc6 {[%clk 0:02:16.2]} 14... dxc6 {[%clk 0:02:30.5]} 15. Bd4 {[%clk
0:02:14.3]} 15... e5 {[%clk 0:02:30.7]} 16. Bc3 {[%clk 0:02:12]} 16... Nxc3
{[%clk 0:02:28.4]} 17. Rxc3 {[%clk 0:02:12.9]} 17... Be6 {[%clk 0:02:26.8]} 18.
Qa4 {[%clk 0:02:07.8]} 18... Rad8 {[%clk 0:02:22.9]} 19. f4 {[%clk 0:01:49.9]}
19... Rd4 {[%clk 0:02:18.3]} 20. Qc2 {[%clk 0:01:46.9]} 20... exf4 {[%clk
0:02:17.4]} 21. Bd3 {[%clk 0:01:44.3]} 21... g6 {[%clk 0:02:13.8]} 22. h4 {[%clk
0:01:42.5]} 22... Qe5 {[%clk 0:02:12.1]} 23. Qf2 {[%clk 0:01:35]} 23... Rfd8
{[%clk 0:02:09.7]} 24. Re1 {[%clk 0:01:34.3]} 24... Qf6 {[%clk 0:02:05.1]} 25.
Bb1 {[%clk 0:01:27.7]} 25... Rd2 {[%clk 0:02:01]} 26. Re2 {[%clk 0:01:25.2]}
26... Rxe2 {[%clk 0:01:57]} 27. Qxe2 {[%clk 0:01:24.8]} 27... Qxh4 {[%clk
0:01:56.1]} 28. a4 {[%clk 0:01:14.5]} 28... Bg4 {[%clk 0:01:52]} 0-1

[Event "*** SCC Grand Prix: Titled Tuesday Blitz"]
[Site "Chess.com"]
[Date "2020.06.02"]
[Round "1"]
[White "Yoshikrov"]
[Black "jocmil"]
[Result "0-1"]
[WhiteElo "2033"]
[BlackElo "2486"]
[TimeControl "180+1"]
[EndTime "10:04:46 PDT"]
[Termination "jocmil won by resignation"]

1. e4 {[%clk 0:02:59.7]} 1... e6 {[%clk 0:02:59.9]} 2. d4 {[%clk 0:02:58.7]}
2... d5 {[%clk 0:03:00.3]} 3. Nd2 {[%clk 0:02:58.9]} 3... Nf6 {[%clk 0:03:00.2]}
4. e5 {[%clk 0:02:58.8]} 4... Nfd7 {[%clk 0:03:00.8]} 5. c3 {[%clk 0:02:59.2]}
5... c5 {[%clk 0:03:00.6]} 6. Bd3 {[%clk 0:02:59.3]} 6... Nc6 {[%clk 0:03:01.2]}
7. Ne2 {[%clk 0:02:59.2]} 7... f6 {[%clk 0:03:00.6]} 8. exf6 {[%clk 0:02:59.1]}
8... Nxf6 {[%clk 0:03:00.4]} 9. O-O {[%clk 0:02:59.4]} 9... cxd4 {[%clk
0:03:00.9]} 10. cxd4 {[%clk 0:02:58.6]} 10... Bd6 {[%clk 0:03:01.5]} 11. Nf3
{[%clk 0:02:58.7]} 11... O-O {[%clk 0:03:02.1]} 12. Bg5 {[%clk 0:02:58.7]} 12...
Qc7 {[%clk 0:02:54.1]} 13. Qc2 {[%clk 0:02:57.6]} 13... g6 {[%clk 0:02:35.8]}
14. Bh4 {[%clk 0:02:54.7]} 14... Qg7 {[%clk 0:02:26.8]} 15. Bg3 {[%clk
0:02:51.5]} 15... Bxg3 {[%clk 0:02:27]} 16. hxg3 {[%clk 0:02:50.5]} 16... Bd7
{[%clk 0:02:26]} 17. Qd2 {[%clk 0:02:25.5]} 17... Rac8 {[%clk 0:02:23.2]} 18.
Rac1 {[%clk 0:02:24.6]} 18... Qe7 {[%clk 0:02:12.5]} 19. Ne5 {[%clk 0:02:12.8]}
19... Nxe5 {[%clk 0:01:58.4]} 20. dxe5 {[%clk 0:02:12]} 20... Ng4 {[%clk
0:01:57.4]} 21. Rxc8 {[%clk 0:02:02.1]} 21... Bxc8 {[%clk 0:01:57.4]} 22. Qc3
{[%clk 0:01:33.2]} 22... Qg5 {[%clk 0:01:44]} 23. f3 {[%clk 0:00:41.3]} 23...
Qe3+ {[%clk 0:01:40.3]} 24. Kh1 {[%clk 0:00:41.1]} 24... Qh6+ {[%clk 0:01:40.1]}
0-1

[Event "*** SCC Grand Prix: Titled Tuesday Blitz"]
[Site "Chess.com"]
[Date "2020.06.02"]
[Round "1"]
[White "Flawless_Fighter"]
[Black "Synctel"]
[Result "1-0"]
[WhiteElo "2466"]
[BlackElo "1919"]
[TimeControl "180+1"]
[EndTime "10:04:48 PDT"]
[Termination "Flawless_Fighter won by resignation"]

1. e4 {[%clk 0:03:00.9]} 1... e6 {[%clk 0:02:57.8]} 2. d4 {[%clk 0:03:00.1]}
2... d5 {[%clk 0:02:57.9]} 3. Nd2 {[%clk 0:03:00.1]} 3... dxe4 {[%clk
0:02:52.5]} 4. Nxe4 {[%clk 0:02:59.8]} 4... Bd7 {[%clk 0:02:53]} 5. Nf3 {[%clk
0:02:58.6]} 5... Bc6 {[%clk 0:02:53.2]} 6. Bd3 {[%clk 0:02:59.3]} 6... Nd7
{[%clk 0:02:49.6]} 7. O-O {[%clk 0:02:58.5]} 7... Ngf6 {[%clk 0:02:49.5]} 8. Ng3
{[%clk 0:02:57.7]} 8... Bxf3 {[%clk 0:02:46.2]} 9. Qxf3 {[%clk 0:02:57.1]} 9...
c6 {[%clk 0:02:46.2]} 10. Re1 {[%clk 0:02:57.4]} 10... Be7 {[%clk 0:02:46]} 11.
c4 {[%clk 0:02:57.6]} 11... O-O {[%clk 0:02:44.8]} 12. b3 {[%clk 0:02:57.9]}
12... Re8 {[%clk 0:02:32.2]} 13. Bb2 {[%clk 0:02:58.1]} 13... a5 {[%clk
0:02:17.1]} 14. a3 {[%clk 0:02:56.6]} 14... Qb6 {[%clk 0:02:11.8]} 15. Rad1
{[%clk 0:02:55.8]} 15... Rad8 {[%clk 0:02:05.1]} 16. h3 {[%clk 0:02:54.4]} 16...
Qc7 {[%clk 0:01:50.5]} 17. Bb1 {[%clk 0:02:53.9]} 17... b5 {[%clk 0:01:40.2]}
18. Ne4 {[%clk 0:02:45.4]} 18... Nxe4 {[%clk 0:01:10]} 19. Bxe4 {[%clk
0:02:44.3]} 19... Rc8 {[%clk 0:00:55.6]} 20. d5 {[%clk 0:02:21.1]} 20... cxd5
{[%clk 0:00:44]} 21. cxd5 {[%clk 0:02:07.4]} 21... Bf6 {[%clk 0:00:36.7]} 22. d6
{[%clk 0:01:56.4]} 22... Qb6 {[%clk 0:00:26.2]} 23. Bxf6 {[%clk 0:01:54.5]}
23... Nxf6 {[%clk 0:00:26.1]} 24. d7 {[%clk 0:01:54.5]} 1-0

[Event "*** SCC Grand Prix: Titled Tuesday Blitz"]
[Site "Chess.com"]
[Date "2020.06.02"]
[Round "1"]
[White "rakshi2005"]
[Black "Revnov"]
[Result "0-1"]
[WhiteElo "2338"]
[BlackElo "2687"]
[TimeControl "180+1"]
[EndTime "10:04:51 PDT"]
[Termination "Revnov won by resignation"]

1. e4 {[%clk 0:03:00.9]} 1... c5 {[%clk 0:02:59.7]} 2. Nf3 {[%clk 0:02:57.5]}
2... d6 {[%clk 0:03:00]} 3. d4 {[%clk 0:02:52.6]} 3... cxd4 {[%clk 0:03:00.9]}
4. Nxd4 {[%clk 0:02:53.5]} 4... Nf6 {[%clk 0:03:01.5]} 5. Nc3 {[%clk 0:02:51.5]}
5... a6 {[%clk 0:03:01.7]} 6. Bg5 {[%clk 0:02:50.8]} 6... Nbd7 {[%clk
0:03:00.5]} 7. Qe2 {[%clk 0:02:48.9]} 7... g6 {[%clk 0:02:48.8]} 8. O-O-O {[%clk
0:02:44.9]} 8... Bg7 {[%clk 0:02:45.5]} 9. f4 {[%clk 0:02:44]} 9... Qc7 {[%clk
0:02:26.7]} 10. Kb1 {[%clk 0:02:31.4]} 10... O-O {[%clk 0:02:25.6]} 11. g4
{[%clk 0:02:18.9]} 11... e5 {[%clk 0:02:13]} 12. Nb3 {[%clk 0:02:09.5]} 12...
exf4 {[%clk 0:01:59.1]} 13. Bxf4 {[%clk 0:02:10.4]} 13... Ne5 {[%clk 0:01:57.3]}
14. h3 {[%clk 0:02:06]} 14... Be6 {[%clk 0:01:55.9]} 15. Bxe5 {[%clk 0:01:56.1]}
15... dxe5 {[%clk 0:01:55.5]} 16. g5 {[%clk 0:01:49.7]} 16... Nh5 {[%clk
0:01:54.8]} 17. Nd5 {[%clk 0:01:47.5]} 17... Bxd5 {[%clk 0:01:52.3]} 18. exd5
{[%clk 0:01:45]} 18... Ng3 {[%clk 0:01:42.2]} 19. Qf3 {[%clk 0:01:37.7]} 19...
e4 {[%clk 0:01:39.3]} 20. Qg2 {[%clk 0:01:20.7]} 20... Nxh1 {[%clk 0:01:39.2]}
21. Qxh1 {[%clk 0:01:21.6]} 21... Qe5 {[%clk 0:01:39]} 22. c3 {[%clk 0:01:16.7]}
22... Rad8 {[%clk 0:01:38.5]} 23. Bc4 {[%clk 0:01:15.2]} 23... b5 {[%clk
0:01:37.8]} 24. Be2 {[%clk 0:01:14.8]} 24... Rxd5 {[%clk 0:01:37.6]} 25. Rxd5
{[%clk 0:01:15.2]} 25... Qxd5 {[%clk 0:01:38.5]} 26. Nc1 {[%clk 0:01:14]} 26...
Rd8 {[%clk 0:01:35.3]} 27. h4 {[%clk 0:01:13.3]} 27... b4 {[%clk 0:01:34.9]} 28.
c4 {[%clk 0:01:04.2]} 28... Qe5 {[%clk 0:01:32.5]} 0-1

[Event "*** SCC Grand Prix: Titled Tuesday Blitz"]
[Site "Chess.com"]
[Date "2020.06.02"]
[Round "1"]
[White "Pultis"]
[Black "Boninknights"]
[Result "1-0"]
[WhiteElo "2782"]
[BlackElo "2397"]
[TimeControl "180+1"]
[EndTime "10:04:53 PDT"]
[Termination "Pultis won by resignation"]

1. d4 {[%clk 0:02:45]} 1... Nf6 {[%clk 0:02:58]} 2. c4 {[%clk 0:02:31.4]} 2...
e6 {[%clk 0:02:55.2]} 3. Nf3 {[%clk 0:02:28.4]} 3... a6 {[%clk 0:02:53.5]} 4.
Nc3 {[%clk 0:02:27.7]} 4... d5 {[%clk 0:02:50.9]} 5. cxd5 {[%clk 0:02:26.8]}
5... exd5 {[%clk 0:02:49.4]} 6. Bg5 {[%clk 0:02:24.8]} 6... Be7 {[%clk
0:02:48.1]} 7. e3 {[%clk 0:02:16.6]} 7... c6 {[%clk 0:02:46.4]} 8. Bd3 {[%clk
0:02:13.3]} 8... Nbd7 {[%clk 0:02:41.4]} 9. O-O {[%clk 0:02:07.5]} 9... Nf8
{[%clk 0:02:39.1]} 10. Ne5 {[%clk 0:02:05.2]} 10... Ne6 {[%clk 0:02:36.2]} 11.
Bh4 {[%clk 0:02:04.6]} 11... g6 {[%clk 0:02:28.5]} 12. Qb3 {[%clk 0:01:47.8]}
12... O-O {[%clk 0:02:21]} 13. Rad1 {[%clk 0:01:39.8]} 13... Ng7 {[%clk
0:02:19.2]} 14. Rfe1 {[%clk 0:01:37.8]} 14... Ra7 {[%clk 0:02:15.9]} 15. f3
{[%clk 0:01:37.1]} 15... Nf5 {[%clk 0:02:00.6]} 16. Bf2 {[%clk 0:01:36.4]} 16...
c5 {[%clk 0:01:54.6]} 17. dxc5 {[%clk 0:01:27.6]} 17... Bxc5 {[%clk 0:01:53.6]}
18. Na4 {[%clk 0:01:21.5]} 18... b6 {[%clk 0:01:37.3]} 19. Nc6 {[%clk
0:01:16.2]} 19... Qc7 {[%clk 0:01:32.2]} 20. Nxa7 {[%clk 0:01:15.9]} 20... Qxa7
{[%clk 0:01:31.8]} 21. Qc3 {[%clk 0:00:56.8]} 21... d4 {[%clk 0:01:20.9]} 22.
exd4 {[%clk 0:00:54.5]} 22... Bxd4 {[%clk 0:01:20.6]} 23. Bxd4 {[%clk
0:00:51.1]} 23... Nxd4 {[%clk 0:01:20.2]} 24. Qxd4 {[%clk 0:00:49.1]} 1-0

[Event "*** SCC Grand Prix: Titled Tuesday Blitz"]
[Site "Chess.com"]
[Date "2020.06.02"]
[Round "1"]
[White "LiemLe"]
[Black "XiaoKangZhong"]
[Result "1-0"]
[WhiteElo "2916"]
[BlackElo "2436"]
[TimeControl "180+1"]
[EndTime "10:04:54 PDT"]
[Termination "LiemLe won by resignation"]

1. e4 {[%clk 0:02:50.8]} 1... c6 {[%clk 0:02:59.3]} 2. d4 {[%clk 0:02:50.3]}
2... d5 {[%clk 0:02:59.4]} 3. e5 {[%clk 0:02:50.9]} 3... c5 {[%clk 0:02:59.6]}
4. dxc5 {[%clk 0:02:50.1]} 4... Nc6 {[%clk 0:02:59.8]} 5. f4 {[%clk 0:02:49.9]}
5... e6 {[%clk 0:02:53.5]} 6. Be3 {[%clk 0:02:50.4]} 6... Nge7 {[%clk
0:02:46.2]} 7. Nf3 {[%clk 0:02:39]} 7... Nf5 {[%clk 0:02:37.4]} 8. Bf2 {[%clk
0:02:39.3]} 8... d4 {[%clk 0:02:34.2]} 9. Bd3 {[%clk 0:02:15.4]} 9... Bxc5
{[%clk 0:02:27.3]} 10. Nbd2 {[%clk 0:02:15]} 10... O-O {[%clk 0:02:18.7]} 11. a3
{[%clk 0:02:04.9]} 11... Ne3 {[%clk 0:01:49.3]} 12. Bxe3 {[%clk 0:02:04.7]}
12... dxe3 {[%clk 0:01:50.2]} 13. Ne4 {[%clk 0:02:04.8]} 13... Bb6 {[%clk
0:01:47.6]} 14. Qe2 {[%clk 0:01:59.5]} 14... Nd4 {[%clk 0:01:44.4]} 15. Nxd4
{[%clk 0:01:58.6]} 15... Qxd4 {[%clk 0:01:45.3]} 16. O-O-O {[%clk 0:01:56.1]}
16... Qa4 {[%clk 0:01:35.4]} 17. Nf6+ {[%clk 0:01:06.5]} 17... gxf6 {[%clk
0:01:24.7]} 18. Qg4+ {[%clk 0:01:05.9]} 18... Kh8 {[%clk 0:01:18.8]} 19. exf6
{[%clk 0:01:06.8]} 19... Rg8 {[%clk 0:01:17.4]} 20. Qh4 {[%clk 0:01:04.5]} 20...
Rg6 {[%clk 0:01:09.9]} 21. Bxg6 {[%clk 0:01:04.3]} 21... fxg6 {[%clk 0:01:10.8]}
22. Qh6 {[%clk 0:01:00.6]} 1-0

[Event "*** SCC Grand Prix: Titled Tuesday Blitz"]
[Site "Chess.com"]
[Date "2020.06.02"]
[Round "1"]
[White "kidagent"]
[Black "Kavyev_Ruslan"]
[Result "0-1"]
[WhiteElo "2193"]
[BlackElo "2543"]
[TimeControl "180+1"]
[EndTime "10:04:56 PDT"]
[Termination "Kavyev_Ruslan won by resignation"]

1. e4 {[%clk 0:03:00.7]} 1... c5 {[%clk 0:02:59.4]} 2. Nf3 {[%clk 0:03:00.3]}
2... d6 {[%clk 0:02:59.8]} 3. d4 {[%clk 0:03:00.4]} 3... cxd4 {[%clk 0:02:58.2]}
4. Nxd4 {[%clk 0:03:01]} 4... Nf6 {[%clk 0:02:57.1]} 5. Nc3 {[%clk 0:03:01.4]}
5... a6 {[%clk 0:02:56.2]} 6. h3 {[%clk 0:03:01.5]} 6... e5 {[%clk 0:02:56.3]}
7. Nde2 {[%clk 0:03:01.2]} 7... h5 {[%clk 0:02:56.9]} 8. Bg5 {[%clk 0:02:57.4]}
8... Be6 {[%clk 0:02:55.9]} 9. Nd5 {[%clk 0:02:54.4]} 9... Bxd5 {[%clk
0:02:53.4]} 10. exd5 {[%clk 0:02:53]} 10... Be7 {[%clk 0:02:52.9]} 11. Bxf6
{[%clk 0:02:46.4]} 11... Bxf6 {[%clk 0:02:53.8]} 12. Nc3 {[%clk 0:02:30.5]}
12... Nd7 {[%clk 0:02:43.1]} 13. Be2 {[%clk 0:02:22.8]} 13... g6 {[%clk
0:02:39.1]} 14. Qd3 {[%clk 0:02:10.3]} 14... O-O {[%clk 0:02:36.5]} 15. O-O-O
{[%clk 0:02:08.9]} 15... Bg7 {[%clk 0:02:33.3]} 16. g4 {[%clk 0:02:06]} 16... h4
{[%clk 0:02:32.8]} 17. Kb1 {[%clk 0:02:03.2]} 17... b5 {[%clk 0:02:32.2]} 18.
Ne4 {[%clk 0:02:01.2]} 18... b4 {[%clk 0:02:28.5]} 19. g5 {[%clk 0:01:43]} 19...
a5 {[%clk 0:02:28.1]} 20. Rhg1 {[%clk 0:01:40.4]} 20... a4 {[%clk 0:02:28.2]}
21. Rg4 {[%clk 0:01:35.1]} 21... a3 {[%clk 0:02:28.3]} 22. b3 {[%clk 0:01:29]}
22... Rc8 {[%clk 0:02:27.4]} 23. Rxh4 {[%clk 0:01:25.6]} 23... Nc5 {[%clk
0:02:27.8]} 24. Nxc5 {[%clk 0:01:23.8]} 24... Rxc5 {[%clk 0:02:28.7]} 25. Rxb4
{[%clk 0:00:58.3]} 25... Qxg5 {[%clk 0:02:28.1]} 26. Rg4 {[%clk 0:00:57.6]}
26... Qf6 {[%clk 0:02:27.9]} 27. Qe4 {[%clk 0:00:49.7]} 27... Rfc8 {[%clk
0:02:27.2]} 28. c4 {[%clk 0:00:48.4]} 28... Rb8 {[%clk 0:02:03.2]} 29. f3 {[%clk
0:00:43.6]} 29... Qe7 {[%clk 0:01:59.1]} 30. Bd3 {[%clk 0:00:42.8]} 30... f5
{[%clk 0:01:56.7]} 31. Qe2 {[%clk 0:00:39.7]} 31... fxg4 {[%clk 0:01:56.8]} 32.
hxg4 {[%clk 0:00:39.7]} 32... e4 {[%clk 0:01:56.3]} 0-1